bitfinex-derivatives/quotes_ETHF0:USTF0_20250518
["timestamp","ask_amount","ask_price","bid_price","bid_amount"]
[1747590655490,14.653,2514.3,2514.2,3.28723442]
[1747590655695,1.16301113,2514.4,2514.3,3.28723442]
[1747590655892,2.99317233,2514.5,2514.4,0.79514]
[1747590656192,3.2078,2515.3,2514.4,10.25043442]
[1747590656399,3.2078,2515.8,2515.2,6.49503442]
[1747590656600,3.2078,2515.8,2515.4,4.08206442]
[1747590656800,3.2078,2515.8,2515.5,6.9486]
[1747590656994,0.79466,2516.0,2515.7,3.28723442]
[1747590657198,4.52929082,2515.9,2515.7,3.28723442]
[1747590657397,4.52928082,2515.9,2515.8,6.9486]
[1747590657696,4.52928082,2515.9,2515.2,3.2078]
[1747590657697,0.79486,2515.3,2515.2,3.2078]
[1747590657902,0.79496,2515.0,2514.7,10.1564]
[1747590658093,0.79496,2515.0,2514.9,3.28723442]
[1747590658300,0.79493,2515.1,2514.9,3.28723442]
[1747590658496,14.638,2515.3,2515.1,3.28723442]
[1747590658797,2.30257187,2515.0,2514.9,3.28723442]
[1747590659304,0.79498,2514.9,2514.8,6.9486]
[1747590659494,1.50762187,2515.0,2514.9,3.28723442]
[1747590659700,1.50762187,2515.0,2514.9,4.08221442]
[1747590660002,1.50762187,2515.0,2514.9,3.28723442]
[1747590660201,1.50762187,2515.0,2514.9,4.08221442]
[1747590660800,1.50762187,2515.0,2514.9,10.78821442]
[1747590661096,2.30257187,2515.0,2514.9,9.99323442]
[1747590661299,1.50762187,2515.0,2514.9,9.99323442]
[1747590661495,1.50762187,2515.0,2514.9,10.78821442]
[1747590663101,2.30257187,2515.0,2514.9,6.706]
[1747590663904,1.50762187,2515.0,2514.9,6.706]
[1747590664103,2.30257187,2515.0,2514.9,6.706]
[1747590664306,1.50762187,2515.0,2514.9,9.99323442]
[1747590664807,2.30257187,2515.0,2514.9,9.99323442]
[1747590665107,2.30257187,2515.0,2514.9,6.706]
[1747590665304,0.79506,2514.7,2514.5,18.4974]
[1747590665503,0.79506,2514.7,2514.6,6.6671]
[1747590665700,0.79506,2514.7,2514.5,18.4974]
[1747590665701,1.98774,2514.6,2513.1,3.2078]
[1747590665905,0.79532,2513.9,2513.8,3.28723442]
[1747590666104,0.79543,2513.5,2513.4,6.6671]
[1747590666814,14.508,2513.6,2513.4,9.95433442]
[1747590667302,15.27141,2513.6,2513.4,9.95433442]
[1747590667501,0.79546,2513.4,2513.3,0.999]
[1747590667712,4.00326,2513.4,2513.3,0.999]
[1747590668008,9.00326,2513.4,2513.3,0.999]
[1747590668505,9.2407145,2513.4,2513.3,0.999]
[1747590668710,0.79555,2513.1,2513.0,2.0]
[1747590668910,1.989,2513.0,2511.8,0.00907894]
[1747590669203,0.79638,2510.5,2510.4,3.28723442]
[1747590669506,19.5758,2510.5,2509.5,3.2078]
[1747590669707,1.99009,2511.6,2509.4,1.8205]
[1747590669708,3.2078,2510.2,2509.6,16.567]
[1747590670004,3.2078,2509.9,2509.6,4.25124784]
[1747590670204,6.8921,2511.5,2509.7,3.2078]
[1747590670205,3.2078,2510.2,2509.7,3.2078]
[1747590670512,3.2078,2511.2,2510.6,0.79632]
[1747590670707,3.2078,2511.2,2510.3,3.2078]
[1747590670906,3.2078,2511.7,2511.1,3.28723442]
[1747590671213,3.2078,2511.7,2510.4,4.19265799]
[1747590671403,3.2078,2511.7,2510.5,3.2078]
[1747590671606,17.086,2511.9,2511.5,3.28723442]
[1747590671807,1.13498472,2511.6,2511.3,20.3538]
[1747590672004,20.3668,2512.5,2511.5,3.28723442]
[1747590672313,3.2078,2512.0,2511.2,17.152]
[1747590672510,3.2078,2512.0,2511.2,17.94815]
[1747590672712,17.277,2512.5,2511.8,3.28723442]
[1747590672917,3.2078,2511.9,2511.8,3.28723442]
[1747590673119,3.2078,2511.9,2511.0,40.095]
[1747590673313,4.04121,2512.0,2511.6,3.28723442]
[1747590673514,3.2078,2511.7,2511.6,3.28723442]
[1747590673720,3.2078,2511.7,2510.9,3.2078]
[1747590673918,3.2078,2511.4,2510.9,3.2078]
[1747590674216,4.70180515,2512.0,2511.3,3.2078]
[1747590674420,4.70180515,2512.0,2511.7,3.28723442]
[1747590674620,4.70180515,2512.0,2511.9,3.28723442]
[1747590674816,4.70180515,2512.0,2511.7,3.28723442]
[1747590675023,4.70180515,2512.0,2511.9,3.28723442]
[1747590675215,5.49771515,2512.0,2511.8,3.28723442]
[1747590675516,4.70180515,2512.0,2510.8,3.2078]
[1747590675722,3.2078,2511.1,2510.3,3.2078]
[1747590675919,3.2078,2510.4,2509.9,7.3992]
[1747590676114,3.2078,2510.1,2509.9,7.3992]
[1747590676523,8.2078,2510.1,2508.7,17.156]
[1747590676722,4.3803,2510.0,2509.8,3.28723442]
[1747590676910,3.2078,2509.9,2509.8,3.28723442]
[1747590677119,3.2078,2510.3,2509.7,3.2078]
[1747590677319,3.2078,2510.3,2509.7,17.156]
[1747590677618,3.2078,2510.3,2510.0,3.28723442]
[1747590677815,0.79657,2510.0,2509.8,3.28723442]
[1747590678010,3.2078,2509.9,2509.3,17.161]
[1747590678215,3.2078,2509.8,2509.6,3.28723442]
[1747590678420,3.2078,2509.8,2489.0,9.81]
[1747590678421,1.99275,2508.3,2505.7,3.2078]
[1747590678716,7.20874162,2507.9,2506.1,0.07980527]
[1747590678911,4.00554,2506.2,2506.1,5.27e-06]
[1747590679111,4.0057,2505.7,2505.6,1.47273931]
[1747590679313,3.2078,2505.7,2505.6,1.47273931]
[1747590679818,8.2078,2505.7,2504.3,4.59374007]
[1747590680012,3.2078,2505.0,2504.7,10.35310087]
[1747590680515,6.591,2508.1,2504.9,3.2078]
[1747590680717,3.2078,2506.2,2505.5,3.2078]
[1747590680926,3.2078,2506.5,2505.6,19.512]
[1747590681120,3.2078,2506.5,2505.1,3.2078]
[1747590681417,3.2078,2506.2,2505.6,3.2078]
[1747590681723,19.578,2506.7,2505.6,3.2078]
[1747590681918,3.2078,2506.8,2506.1,0.79775]
[1747590682222,0.79758,2506.7,2506.2,0.07980209]
[1747590682414,1.1207,2506.7,2506.2,0.07980209]
[1747590682614,4.00535,2506.8,2506.2,0.07980209]
[1747590682812,3.2078,2506.5,2506.2,0.07980209]
[1747590683018,3.2078,2507.2,2506.4,3.2078]
[1747590683215,3.2078,2507.2,2506.3,19.528]
[1747590683418,3.2078,2506.9,2506.2,0.07980209]
[1747590683618,19.919,2506.8,2506.2,0.07980209]
[1747590683919,3.2078,2506.6,2506.2,0.07980209]
[1747590684517,19.929,2506.6,2506.2,0.07980209]
[1747590684919,4.00551,2506.3,2506.2,0.07980209]
[1747590685219,3.2078,2506.3,2505.1,3.2078]
[1747590685423,3.2078,2506.1,2505.4,3.2078]
[1747590685619,3.2078,2506.4,2505.7,3.2078]
[1747590685818,3.2078,2506.7,2505.9,3.2078]
[1747590686126,0.79779,2506.1,2505.9,3.2078]
[1747590686327,3.2078,2506.7,2505.9,3.2078]
[1747590686525,3.2078,2506.4,2505.2,3.2078]
[1747590686729,3.2078,2506.0,2505.2,3.2078]
[1747590687213,3.2078,2505.5,2504.7,3.93749149]
[1747590687421,20.68792,2505.7,2505.2,3.2078]
[1747590687722,3.2078,2505.8,2505.1,3.2078]
[1747590687918,3.2078,2506.2,2505.4,0.79798]
[1747590688125,3.2078,2506.5,2505.8,3.2078]
[1747590688433,5.35686602,2508.9,2506.4,3.2078]
[1747590688434,3.2078,2507.1,2506.4,3.2078]
[1747590688634,19.843,2507.4,2506.8,3.2078]
[1747590688832,3.2078,2508.0,2507.1,3.2078]
[1747590689133,1.11524569,2508.4,2507.4,3.2078]
[1747590689340,1.11524569,2508.4,2506.5,19.823]
[1747590689341,0.07973527,2508.3,2507.6,3.2078]
[1747590689533,0.07973527,2508.3,2507.9,3.2078]
[1747590689836,0.07973527,2508.3,2508.1,0.79712]
[1747590690042,0.07973527,2508.3,2508.2,7.3612]
[1747590690626,0.07973527,2508.3,2508.2,12.3612]
[1747590690829,0.07973527,2508.3,2508.2,7.3612]
[1747590691030,0.07973527,2508.3,2508.2,15.569]
[1747590691340,0.07973527,2508.3,2508.2,12.3612]
[1747590691540,1.11524569,2508.4,2508.2,15.569]
[1747590691836,5.44880773,2508.9,2508.2,15.569]
[1747590692039,0.07971938,2508.8,2508.3,0.79707]
[1747590692240,0.07971938,2508.8,2508.2,3.2078]
[1747590692438,0.07971938,2508.8,2508.5,3.2078]
[1747590692835,4.3114,2509.7,2508.5,3.2078]
[1747590692836,3.2078,2509.7,2508.5,8.2078]
[1747590693136,0.07969397,2509.6,2509.0,3.2078]
[1747590693441,0.87637397,2509.6,2509.3,3.2078]
[1747590693642,0.07969397,2509.6,2509.5,0.79669]
[1747590693842,0.07969397,2509.6,2509.3,9.00453]
[1747590694040,0.07969397,2509.6,2509.3,8.2078]
[1747590694238,0.07969715,2509.5,2509.3,3.2078]
[1747590694434,0.79673,2509.4,2509.3,3.2078]
[1747590694835,3.2078,2509.4,2508.6,67.7309]
[1747590695235,0.79689,2508.9,2508.6,48.1899]
[1747590695442,3.2078,2508.9,2508.6,67.7309]
[1747590695641,3.2078,2508.9,2508.6,48.1899]
[1747590695843,3.2078,2508.9,2508.6,67.7309]
[1747590696040,3.2078,2508.9,2508.6,72.7309]
[1747590696245,0.7968,2509.2,2508.8,0.79692]
[1747590696444,0.07969715,2509.5,2508.6,67.7309]
[1747590696648,5.19962,2509.4,2508.6,67.7299]
[1747590696839,3.2078,2509.1,2508.6,67.7299]
[1747590697039,0.79695,2508.7,2508.6,67.7299]
[1747590697443,3.2078,2508.7,2508.0,19.54]
[1747590697637,3.2078,2508.7,2508.1,6.9483]
[1747590697846,3.2078,2509.0,2508.2,3.2078]
[1747590698043,0.79689,2508.9,2508.5,0.797]
[1747590698247,3.2078,2509.0,2508.6,6.9483]
[1747590698449,0.79691,2508.9,2508.6,6.9483]
[1747590698651,3.2078,2509.3,2508.6,7.74525]
[1747590698853,0.79687,2509.0,2508.6,7.74525]
[1747590699045,3.2078,2509.3,2508.6,7.74527]
[1747590699248,0.79695,2508.7,2508.6,6.9483]
[1747590699554,0.79695,2508.7,2508.6,26.4873]
[1747590699845,3.2078,2509.6,2508.6,31.4873]
[1747590700046,5.1993,2509.9,2508.7,3.2078]
[1747590700255,0.79686,2509.0,2508.7,3.2078]
[1747590700448,0.79686,2509.0,2508.8,7.1672]
[1747590700648,0.79688,2508.9,2508.8,7.1672]
[1747590700850,3.2078,2509.6,2508.8,7.1672]
[1747590701045,4.00438,2509.9,2509.6,0.79665]
[1747590701250,4.97897031,2510.5,2509.6,19.539]
[1747590701554,1.9911,2510.4,2509.6,19.539]
[1747590701851,0.79662,2509.8,2509.6,19.539]
[1747590702057,0.79663,2509.7,2509.6,19.539]
[1747590702352,2.98801031,2510.5,2509.8,0.79658]
[1747590702547,2.98801031,2510.5,2510.1,4.0043]
[1747590702754,3.03747773,2510.2,2510.1,3.2078]
[1747590703451,2.98801031,2510.5,2510.1,8.2078]
[1747590703653,0.79647,2510.3,2510.1,4.0043]
[1747590703853,0.79647,2510.2,2510.1,3.2078]
[1747590704256,0.79647,2510.2,2510.1,27.1548]
[1747590704457,0.79647,2510.2,2510.1,3.2078]
[1747590704949,0.79647,2510.2,2510.1,22.1548]
[1747590705156,0.79647,2510.2,2509.5,3.9599]
[1747590705157,0.79657,2509.9,2509.8,3.2078]
[1747590705353,0.7965,2510.1,2510.0,18.943]
[1747590705552,1.99078,2510.8,2510.0,19.73953]
[1747590705754,0.79657,2509.9,2509.8,3.2078]
[1747590705954,0.79657,2509.9,2509.8,22.1508]
[1747590706153,0.79657,2509.9,2509.8,23.943]
[1747590706458,0.79657,2509.9,2509.8,18.943]
[1747590707661,0.79666,2509.6,2509.5,3.2078]
[1747590708457,0.79665,2509.7,2509.5,3.2078]
[1747590708655,0.79655,2510.0,2509.6,19.73864]
[1747590709054,0.79655,2510.0,2509.7,8.01852]
[1747590709254,1.99098,2510.5,2509.7,8.01852]
[1747590709255,3.2078,2510.5,2509.8,3.2078]
[1747590709455,0.79649,2510.2,2509.8,4.00438]
[1747590709654,0.79649,2510.2,2509.9,7.2219]
[1747590709958,10.4936,2510.8,2509.9,7.2219]
[1747590710160,10.4936,2510.8,2510.0,18.942]
[1747590710354,0.79653,2510.1,2510.0,18.942]
[1747590710766,0.79653,2510.1,2510.0,23.942]
[1747590711260,0.79653,2510.1,2510.0,18.942]
[1747590711668,0.79653,2510.0,2509.9,7.2219]
[1747590711954,1.99111,2510.3,2509.6,0.79665]
[1747590712157,1.17359066,2510.0,2509.5,3.2078]
[1747590712361,0.79666,2509.6,2509.5,3.2078]
[1747590713164,0.79666,2509.6,2509.5,10.7906]
[1747590713961,1.97025066,2509.6,2509.5,10.7906]
[1747590714163,1.97025066,2509.6,2509.5,15.7906]
[1747590714356,1.17359066,2509.6,2509.5,10.7906]
[1747590714560,1.97025066,2509.6,2509.5,10.7906]
[1747590714864,0.79655,2510.0,2509.5,15.7906]
[1747590715065,3.2078,2510.4,2509.8,4.00437]
[1747590715364,0.79646,2510.3,2509.9,7.4439]
[1747590715755,0.79647,2510.2,2509.9,7.4439]
[1747590716068,0.79646,2510.3,2509.9,8.24046]
[1747590716265,0.79643,2510.4,2510.2,3.2078]
[1747590716561,0.79639,2510.5,2510.3,25.7029]
[1747590716768,2.98801031,2510.7,2510.3,25.7029]
[1747590716973,3.78432031,2510.7,2510.6,3.2078]
[1747590717264,0.79629,2510.8,2510.6,3.2078]
[1747590717465,0.79629,2510.8,2510.7,7.6511]
[1747590717665,13.31244579,2511.1,2510.7,7.6511]
[1747590717859,13.31244579,2511.1,2510.9,3.2078]
[1747590718060,2.98801031,2511.2,2511.0,25.9081]
[1747590718567,2.98801031,2511.2,2511.1,0.79619]
[1747590718770,2.98801031,2511.2,2511.0,31.7043]
[1747590718968,2.98801031,2511.2,2511.0,30.9081]
[1747590719164,0.79619,2511.1,2511.0,30.9081]
[1747590719361,2.98801031,2511.2,2511.0,30.9081]
[1747590719557,0.79619,2511.1,2511.0,7.6511]
[1747590720063,0.79638,2510.5,2510.4,3.2078]
[1747590720561,0.79644,2510.3,2510.2,48.1333]
[1747590720762,0.79644,2510.3,2510.2,65.8203]
[1747590720955,0.79644,2510.3,2510.2,70.8203]
[1747590721366,0.79644,2510.3,2510.2,78.1967]
[1747590721559,0.79639,2510.5,2510.2,78.1967]
[1747590721762,0.79644,2510.4,2510.3,7.3764]
[1747590721966,0.79644,2510.4,2510.3,25.0634]
[1747590722865,0.79644,2510.4,2509.6,17.541]
[1747590722866,3.2078,2510.6,2509.8,3.2078]
[1747590723066,10.2822,2510.3,2509.7,25.0634]
[1747590723270,0.79649,2510.2,2509.9,3.2078]
[1747590723462,4.97877031,2510.8,2510.1,0.7965]
[1747590723463,0.79639,2510.5,2510.1,0.7965]
[1747590723765,2.98801031,2510.8,2510.2,7.6563]
[1747590723969,0.79636,2510.6,2510.5,3.2078]
[1747590724161,2.98801031,2510.8,2510.6,0.79633]
[1747590724358,2.98801031,2510.8,2510.7,7.6563]
[1747590724666,1.50730895,2510.6,2510.1,3.905]
[1747590724860,0.7965,2510.1,2510.0,25.3433]
[1747590725063,1.50730895,2510.6,2510.0,25.3433]
[1747590725263,1.50730895,2510.6,2510.5,3.2078]
[1747590725568,1.50730895,2510.6,2510.3,0.79642]
[1747590725770,1.50730895,2510.6,2510.4,7.6563]
[1747590725771,0.79638,2510.5,2510.4,7.6563]
[1747590726160,3.49821895,2510.6,2509.9,7.1128]
[1747590726370,7.6687,2510.5,2510.0,8.25382]
[1747590726561,0.79649,2510.2,2510.0,7.4573]
[1747590726766,0.79648,2510.2,2510.0,7.4573]
[1747590726958,0.7965,2510.1,2510.0,7.4573]
[1747590727467,0.79765,2506.5,2506.4,2.46987142]
[1747590727665,0.79765,2506.5,2503.0,18.283]
[1747590727666,0.79778,2506.1,2506.0,5.84671191]
[1747590727868,4.00558,2506.1,2506.0,1.75577226]
[1747590728073,9.00558,2506.1,2506.0,1.75577226]
[1747590728280,4.00558,2506.1,2506.0,1.75577226]
[1747590728866,4.00558,2506.1,2506.0,0.42068226]
[1747590729179,10.42548477,2506.1,2506.0,2.26e-06]
[1747590729376,5.42548477,2506.1,2506.0,2.26e-06]
[1747590729762,4.39100526,2506.1,2506.0,5.00000226]
[1747590730171,4.39100526,2506.1,2506.0,5.0]
[1747590730367,4.39100526,2506.1,2506.0,5.79781]
[1747590730571,3.2078,2506.6,2506.2,0.79773]
[1747590730871,3.2078,2507.0,2506.3,7.1502]
[1747590731268,0.79755,2506.9,2506.3,7.1502]
[1747590731468,0.79754,2506.9,2506.3,7.1502]
[1747590731672,0.79757,2506.8,2506.3,7.1502]
[1747590731869,7.1479,2506.9,2506.3,7.1502]
[1747590732069,7.94543,2506.9,2506.3,7.1502]
[1747590732375,3.2078,2506.7,2506.3,7.1502]
[1747590732575,3.2078,2506.7,2505.9,2.26e-06]
[1747590732775,7.5403,2506.6,2506.0,7.0924]
[1747590733080,0.79778,2506.1,2506.0,7.0924]
[1747590733266,3.2078,2506.4,2505.9,2.26e-06]
[1747590733579,0.79781,2506.0,2505.9,2.26e-06]
[1747590733967,7.5403,2506.0,2505.9,2.26e-06]
[1747590734174,8.33811,2506.0,2505.9,2.26e-06]
[1747590734574,12.5403,2506.0,2505.6,2.17521067]
[1747590734781,0.7981,2505.1,2504.7,7.0924]
[1747590735078,0.79811,2505.1,2504.7,7.0924]
[1747590735376,3.2078,2505.2,2504.1,43.3978]
[1747590735577,3.2078,2505.2,2504.5,7.1043]
[1747590735780,0.79824,2504.7,2504.2,3.2078]
[1747590735970,3.2078,2504.9,2504.2,3.2078]
[1747590736166,3.2078,2504.9,2504.3,7.1043]
[1747590736372,0.79824,2504.7,2504.3,7.1043]
[1747590736577,7.0903,2504.8,2504.4,3.2078]
[1747590736777,3.2078,2504.9,2504.5,7.1043]
[1747590737177,0.79821,2504.8,2504.5,7.1043]
[1747590737468,3.2078,2504.9,2503.8,3.2078]
[1747590737671,0.79836,2504.3,2503.8,3.2078]
[1747590737870,21.0978,2504.6,2503.8,3.2078]
[1747590738076,7.0903,2504.5,2503.8,3.2078]
[1747590738279,3.2078,2505.1,2504.2,3.2078]
[1747590738482,3.2078,2505.4,2504.5,3.2078]
[1747590738678,0.79808,2505.2,2504.6,0.79823]
[1747590738976,7.5267,2505.3,2504.6,0.79823]
[1747590739182,0.79808,2505.2,2504.6,0.79824]
[1747590739375,0.79808,2505.2,2504.5,3.2078]
[1747590739568,7.5267,2505.3,2504.7,0.7982]
[1747590739771,3.2078,2505.4,2504.5,3.2078]
[1747590739979,1.4894936,2505.6,2505.2,4.00586]
[1747590740175,1.4894936,2505.6,2505.1,0.79808]
[1747590740377,1.4894936,2505.6,2504.9,0.79814]
[1747590740689,1.4894936,2505.6,2504.9,18.31]
[1747590740986,1.4894936,2505.6,2504.8,3.2078]
[1747590741276,3.2078,2505.2,2504.8,0.79818]
[1747590741474,3.2078,2505.5,2504.4,18.313]
[1747590741675,1.4894936,2505.6,2505.3,0.79801]
[1747590741884,3.2078,2505.8,2505.2,18.313]
[1747590742075,3.2078,2505.8,2505.4,0.79798]
[1747590742276,3.2078,2505.8,2505.2,18.313]
[1747590742471,7.7182,2506.5,2505.2,18.313]
[1747590742472,3.2078,2506.3,2505.7,3.2078]
[1747590742680,12.7182,2506.5,2505.2,3.2078]
[1747590742982,3.2078,2505.3,2504.2,3.2078]
[1747590743179,0.79837,2504.3,2503.8,0.79849]
[1747590743375,0.79843,2504.1,2503.7,18.313]
[1747590743876,3.2078,2504.3,2503.7,18.313]
[1747590744077,4.00616,2504.3,2503.8,0.79848]
[1747590744284,4.00616,2504.3,2503.8,0.79849]
[1747590744479,0.79846,2504.0,2503.6,3.2078]
[1747590744680,3.2078,2504.3,2503.6,3.2078]
[1747590744878,0.79854,2503.8,2503.6,3.2078]
[1747590745084,10.331,2504.3,2503.6,3.2078]
[1747590745286,3.2078,2504.0,2503.4,18.317]
[1747590745487,3.2078,2503.7,2503.2,3.2078]
[1747590745986,7.1232,2503.9,2503.2,3.2078]
[1747590746180,0.7984,2504.2,2503.6,0.79854]
[1747590746381,4.00613,2504.4,2503.9,0.79845]
[1747590746582,3.2078,2504.9,2503.6,18.317]
[1747590746782,3.2078,2504.9,2503.9,3.2078]
[1747590746987,3.2078,2504.6,2503.9,3.2078]
[1747590747680,3.2078,2504.6,2503.6,21.5248]
[1747590747878,3.2078,2504.6,2503.9,3.2078]
[1747590748088,0.79831,2504.5,2503.9,3.2078]
[1747590748288,3.2078,2504.6,2503.9,3.2078]
[1747590748485,7.634,2504.4,2503.9,3.2078]
[1747590749082,0.79842,2504.1,2503.9,3.2078]
[1747590749387,0.79843,2504.1,2503.6,0.79855]
[1747590749588,0.79844,2504.0,2503.5,41.02858]
[1747590749788,0.79844,2504.0,2503.6,7.6555]
[1747590749988,3.2078,2504.3,2503.6,7.6555]
[1747590750289,7.634,2504.2,2503.6,7.6555]
[1747590750589,8.43239,2504.2,2503.7,0.79852]
[1747590750890,8.43239,2504.2,2503.8,7.1378]
[1747590751092,3.2078,2504.6,2504.0,3.2078]
[1747590751388,3.2078,2505.2,2504.2,3.2078]
[1747590751587,3.2078,2505.2,2504.3,7.1378]
[1747590751786,10.4173,2505.2,2504.6,0.79822]
[1747590752092,0.79814,2505.0,2504.7,7.1378]
[1747590752295,3.2078,2504.9,2504.2,3.2078]
[1747590752584,21.4828,2504.9,2504.3,7.1378]
[1747590752792,0.7983,2504.5,2504.3,7.1378]
[1747590752980,7.2095,2504.8,2504.3,7.1378]
[1747590753180,0.79832,2504.4,2504.3,7.1378]
[1747590754289,0.79831,2504.5,2504.3,7.1378]
[1747590754490,0.79832,2504.4,2504.3,7.1378]
[1747590754691,3.2078,2504.6,2504.3,7.1378]
[1747590754988,3.2078,2504.6,2504.5,0.79828]
[1747590755180,1.10457906,2505.1,2504.4,0.79829]
[1747590755387,1.10457906,2505.1,2504.6,3.2078]
[1747590755587,1.10457906,2505.1,2505.0,0.79812]
[1747590756190,0.79818,2504.9,2504.7,7.4974]
[1747590756389,0.79814,2505.0,2504.8,7.4974]
[1747590756694,1.90269906,2505.1,2504.8,7.4974]
[1747590756891,1.90269906,2505.1,2504.8,8.29558]
[1747590757093,1.21118544,2505.0,2504.8,7.4974]
[1747590757294,0.79816,2504.9,2504.8,7.4974]
[1747590757485,0.23560948,2504.9,2504.8,7.4974]
[1747590757691,0.23560948,2504.9,2504.8,8.29559]
[1747590757886,1.21118544,2505.0,2504.9,0.79816]
[1747590758083,1e-08,2505.0,2504.9,4.00596]
[1747590758296,1e-08,2505.0,2504.9,16.28726]
[1747590758694,1.4894936,2505.3,2505.2,0.79806]
[1747590758983,2.2342404,2505.4,2505.3,0.79803]
[1747590759201,2.2342404,2505.4,2505.3,4.00583]
[1747590759388,2.98801031,2505.7,2505.6,0.79793]
[1747590759591,2.98801031,2505.7,2505.6,4.00573]
[1747590759798,3.73461082,2506.0,2505.6,3.2078]
[1747590759996,0.23574773,2505.9,2505.7,8.05298]
[1747590760196,0.79787,2505.8,2505.7,7.2551]
[1747590760994,0.23577462,2505.8,2505.7,7.2551]
[1747590761297,1.03364462,2505.8,2505.7,7.2551]
[1747590762695,0.79809,2505.1,2504.9,3.2078]
[1747590762893,3.2078,2505.5,2505.0,7.1024]
[1747590763091,0.79803,2505.3,2505.0,7.1024]
[1747590763290,7.0903,2505.7,2505.0,7.1024]
[1747590763291,0.23602781,2505.2,2505.0,7.1024]
[1747590763491,0.79805,2505.3,2505.0,7.1024]
[1747590763698,0.23603575,2505.2,2505.1,0.79809]
[1747590763899,7.0903,2505.7,2505.2,0.79806]
[1747590764097,0.23605338,2505.6,2505.5,4.00576]
[1747590764300,0.7978,2506.1,2505.5,21.2698]
[1747590764495,0.23606761,2506.0,2505.7,0.79788]
[1747590764698,0.23606761,2505.9,2505.8,7.1024]
[1747590764897,0.23606761,2505.9,2505.8,7.90027]
[1747590765198,3.2078,2506.2,2505.8,7.1024]
[1747590765398,0.79782,2506.0,2505.8,7.1024]
[1747590765594,3.2078,2506.6,2505.8,7.1024]
[1747590765799,3.2078,2506.6,2505.8,7.90024]
[1747590766099,0.79776,2506.2,2505.9,0.79783]
[1747590766396,0.79776,2506.2,2506.0,7.4972]
[1747590766597,4.53230082,2506.4,2506.1,0.79775]
[1747590766900,4.53230082,2506.4,2506.2,7.4972]
[1747590766901,3.73461082,2506.4,2506.2,7.4972]
[1747590767504,3.73461082,2506.4,2506.2,8.29493]
[1747590767702,3.73461082,2506.4,2506.2,25.77593]
[1747590767999,3.73461082,2506.4,2506.2,25.77592]
[1747590768203,3.73461082,2506.4,2506.3,8.29491]
[1747590768396,3.73461082,2506.4,2506.3,7.4972]
[1747590768602,0.79768,2506.4,2506.3,7.4972]
[1747590768801,3.2078,2506.9,2506.3,7.4972]
[1747590768802,0.79767,2506.5,2506.3,7.4972]
[1747590768992,3.73461082,2507.1,2506.4,3.2078]
[1747590769195,0.79756,2506.8,2506.5,0.79763]
[1747590769504,0.79756,2506.8,2506.6,24.6449]
[1747590769700,0.79754,2506.9,2506.7,7.1659]
[1747590769902,0.7975,2507.0,2506.7,7.96348]
[1747590770299,3.73461082,2507.1,2506.7,7.1659]
[1747590770700,0.79754,2506.9,2506.7,7.1659]
[1747590771098,0.79751,2507.0,2506.7,7.96347]
[1747590771799,1.49515619,2506.9,2506.8,3.2078]
[1747590771999,1.49515619,2506.9,2506.8,4.00535]
[1747590772196,1.49515619,2506.9,2506.8,3.2078]
[1747590772698,1.49515619,2506.9,2506.8,4.00535]
[1747590773403,2.99031238,2507.4,2507.3,0.79739]
[1747590773607,2.99031238,2507.4,2507.3,20.92519]
[1747590774010,2.99031238,2507.4,2507.3,4.00519]
[1747590774308,2.99031238,2507.4,2507.3,9.00519]
[1747590774505,3.73461082,2507.8,2507.7,0.79726]
[1747590774711,5.27997653,2508.1,2508.0,0.79717]
[1747590775009,5.27997653,2508.1,2508.0,20.92197]
[1747590775410,5.27997653,2508.1,2508.0,25.92197]
[1747590775609,7.30858222,2508.6,2508.0,25.1248]
[1747590775810,7.30858222,2508.6,2508.5,0.79701]
[1747590776113,0.79691,2508.9,2508.4,3.2078]
[1747590776303,0.79687,2509.0,2508.4,3.2078]
[1747590776503,0.79687,2509.0,2508.7,0.79694]
[1747590776701,0.79688,2509.0,2508.8,16.917]
[1747590776906,0.6215002,2508.9,2508.8,16.917]
[1747590777206,1.4183802,2508.9,2508.8,16.917]
[1747590777403,0.6215002,2508.9,2508.4,3.2078]
[1747590777612,1.9923,2508.8,2508.3,57.131]
[1747590777811,1.99237,2508.7,2508.3,40.219]
[1747590778005,0.79704,2508.4,2508.3,40.219]
[1747590779100,3.2078,2508.4,2507.8,7.3893]
[1747590779306,0.7972,2507.9,2507.8,7.3893]
[1747590779506,7.2983,2508.3,2507.7,3.2078]
[1747590780010,8.09539,2508.3,2507.9,0.7972]
[1747590780205,3.2078,2508.5,2508.4,0.79704]
[1747590780412,0.6215002,2508.9,2508.4,3.2078]
[1747590780605,0.6215002,2508.9,2508.5,24.2993]
[1747590781112,1.4183902,2508.9,2508.5,25.09629]
[1747590781309,0.6215002,2508.9,2508.8,0.79692]
[1747590781518,0.6215002,2508.9,2508.8,4.00472]
[1747590781903,0.6215002,2508.9,2508.8,9.00472]
[1747590782208,0.93225031,2509.1,2509.0,0.79685]
[1747590782514,0.93225031,2509.1,2508.8,12.83407251]
[1747590782515,0.79678,2509.3,2508.9,7.0745]
[1747590782710,0.79676,2509.3,2509.1,0.79681]
[1747590782912,0.79676,2509.3,2509.2,23.9845]
[1747590783212,0.79676,2509.3,2509.2,7.0745]
[1747590783413,0.79676,2509.3,2509.2,23.9805]
[1747590783717,0.79688,2508.9,2508.8,3.2078]
[1747590783916,0.79688,2508.9,2508.8,27.1338]
[1747590784103,7.7544,2509.3,2508.8,27.1338]
[1747590784619,3.2078,2509.7,2509.2,0.79677]
[1747590784801,3.2078,2510.0,2509.4,3.2078]
[1747590785000,10.9622,2510.0,2509.4,3.2078]
[1747590785314,0.79658,2509.9,2509.6,0.79665]
[1747590785510,11.75875,2510.0,2509.7,7.562]